fUST/lending_fUST_20250630
["ID","MTS","AMOUNT","RATE_DAILY","PERIOD"]
[368613075,1751236246726,-916.76,0.00019692,2]
[368613076,1751236246735,-848.3,0.00019692,2]
[368613077,1751236246744,-460.0,0.00019692,2]
[368613078,1751236246753,-703.84,0.00019692,2]
[368613079,1751236246762,-1554.56,0.00019692,2]
[368613080,1751236246771,-460.0,0.00019693,2]
[368613081,1751236246780,-469.77,0.00019693,2]
[368613082,1751236246789,-460.0,0.00019693,2]
[368613083,1751236246799,-151.0,0.00019699,2]
[368613084,1751236246807,-151.0,0.00019699,2]
[368613085,1751236246816,-151.0,0.00019699,2]
[368613086,1751236246828,-151.0,0.00019699,2]
[368613087,1751236246837,-151.0,0.00019699,2]
[368613088,1751236246846,-151.0,0.00019699,2]
[368613089,1751236246855,-647.130636,0.00019699,2]
[368613090,1751236246864,-647.130636,0.00019699,2]
[368613091,1751236246874,-279.384218,0.00019699,2]
[368613092,1751236246882,-279.384218,0.00019699,2]
[368613093,1751236246892,-490.70993,0.00019699,2]
[368613094,1751236246901,-490.70993,0.00019699,2]
[368613095,1751236246910,-151.0,0.00019699,2]
[368613096,1751236246918,-151.0,0.00019699,2]
[368613097,1751236246927,-633.874888,0.00019699,2]
[368613098,1751236246936,-633.874888,0.00019699,2]
[368613099,1751236246945,-5000.0,0.00019699,2]
[368613100,1751236246954,-500.0,0.00019699,2]
[368613101,1751236246962,-690.642,0.00019699,2]
[368613102,1751236246972,-207.4,0.00019699,2]
[368613103,1751236246981,-1000.0,0.00019717,2]
[368613104,1751236246990,-500.0,0.00019717,2]
[368613105,1751236246999,-1000.0,0.00019717,2]
[368613106,1751236247008,-716.195754,0.00019754,2]
[368613107,1751236247018,-834.22422399,0.00019809,2]
[368613108,1751236247027,-3522.03738961,0.000199,2]
[368613109,1751236247036,-707.6083067,0.00019918,2]
[368613110,1751236247045,-460.0,0.00019963,2]
[368613111,1751236247054,-460.0,0.00019963,2]
[368613112,1751236247063,-1309.61,0.00019963,2]
[368613113,1751236247074,-460.0,0.00019964,2]
[368613114,1751236247084,-475.59879967,0.00019964,2]
[368613115,1751236247093,-151.0,0.00019964,2]
[368613116,1751236247102,-151.0,0.00019964,2]
[368613117,1751236247111,-151.0,0.00019964,2]
[368613118,1751236247121,-151.0,0.00019964,2]
[368613119,1751236247130,-1455.63,0.00019964,2]
[368613120,1751236247141,-978.25,0.00019964,2]
[368613121,1751236247150,-151.0,0.00019964,2]
[368613122,1751236247160,-151.0,0.00019964,2]
[368613123,1751236247169,-151.0,0.00019964,2]
[368613124,1751236247179,-151.0,0.00019964,2]
[368613125,1751236247189,-643.56555878,0.00019964,2]
[368613410,1751236261869,327.55049,0.00013699,2]
[368613412,1751236547425,23174.25761556,0.00017321,2]
[368613413,1751236547448,1725.74238444,0.00017321,2]
[368613414,1751236582479,5000.0,0.000181,2]
[368613415,1751236603637,5000.0,0.000181,2]
[368613416,1751236618925,4269.86787036,0.000181,2]
[368613417,1751236975894,198.8620207,0.00017319,2]
[368613418,1751237059676,500.0,0.00018068,2]
[368613419,1751237113630,202.786007,0.00017318,2]
[368613420,1751237169582,10000.0,0.00017319,2]
[368613457,1751237432688,-246.26309525,0.00018216,2]
[368613458,1751237432698,-193.30190475,0.00018218,2]
[368613460,1751237432710,-290.22109688,0.00018218,2]
[368613462,1751237432719,-300.0,0.00018316,2]
[368613464,1751237432728,-300.0,0.00018316,2]
[368613466,1751237432738,-1200.0,0.00018316,2]
[368613468,1751237432747,-4359.04163032,0.00018317,2]
[368613470,1751237432759,-5453.81018901,0.00018317,2]
[368613472,1751237432768,-460.0,0.00018317,2]
[368613474,1751237432778,-460.0,0.00018317,2]
[368613476,1751237432787,-460.0,0.00018317,2]
[368613479,1751237432796,-540.0,0.00018317,2]
[368613481,1751237432805,-460.0,0.00018317,2]
[368613483,1751237432815,-460.0,0.00018317,2]
[368613485,1751237432824,-1776.59,0.00018317,2]
[368613486,1751237432833,-460.0,0.00018317,2]
[368613489,1751237432842,-689.98027638,0.00018317,2]
[368613493,1751237432854,-2640.91972362,0.00018317,2]
[368613495,1751237432863,-430.4361999,0.00018317,2]
[368613496,1751237432873,-460.0,0.00018317,2]
[368613497,1751237432882,-460.0,0.00018317,2]
[368613498,1751237432892,-460.0,0.00018317,2]
[368613500,1751237432901,-1845.69,0.00018317,2]
[368613503,1751237432910,-460.0,0.00018317,2]
[368613506,1751237432919,-460.0,0.00018317,2]
[368613508,1751237432928,-1799.5,0.00018317,2]
[368613510,1751237432938,-460.0,0.00018317,2]
[368613511,1751237432947,-460.0,0.00018317,2]
[368613512,1751237432956,-2094.07,0.00018317,2]
[368613513,1751237432965,-460.0,0.00018317,2]
[368613514,1751237432974,-1223.65,0.00018317,2]
[368613515,1751237432984,-1016.52,0.00018317,2]
[368613516,1751237432994,-460.0,0.00018317,2]
[368613517,1751237433004,-460.0,0.00018317,2]
[368613518,1751237433013,-460.0,0.00018317,2]
[368613519,1751237433022,-979.17,0.00018317,2]
[368613520,1751237433032,-460.0,0.00018317,2]
[368613521,1751237433042,-1413.48,0.00018317,2]
[368613522,1751237433051,-460.0,0.00018318,2]
[368613523,1751237433061,-464.86961979,0.00018318,2]
[368613524,1751237433070,-460.0,0.00018318,2]
[368613525,1751237433080,-443.19302072,0.00018318,2]
[368613526,1751237433089,-460.0,0.00018318,2]
[368613527,1751237433099,-458.3906624,0.00018318,2]
[368613528,1751237433108,-460.0,0.00018318,2]
[368613529,1751237433118,-460.0,0.00018318,2]
[368613530,1751237433128,-398.10576102,0.00018318,2]
[368613531,1751237433139,-460.0,0.00018318,2]
[368613532,1751237433148,-460.0,0.00018318,2]
[368613533,1751237433158,-460.0,0.00018318,2]
[368613534,1751237433167,-460.0,0.00018318,2]
[368613535,1751237433177,-590.36755974,0.00018318,2]
[368613536,1751237433187,-460.0,0.00018318,2]
[368613537,1751237433196,-460.0,0.00018318,2]
[368613538,1751237433206,-460.0,0.00018318,2]
[368613539,1751237433216,-460.0,0.00018318,2]
[368613540,1751237433227,-460.0,0.00018318,2]
[368613541,1751237433239,-460.0,0.00018318,2]
[368613542,1751237433249,-460.0,0.00018318,2]
[368613543,1751237433259,-460.0,0.00018318,2]
[368613544,1751237433269,-460.0,0.00018318,2]
[368613545,1751237433279,-460.0,0.00018318,2]
[368613546,1751237433289,-460.0,0.00018318,2]
[368613547,1751237433299,-460.0,0.00018318,2]
[368613548,1751237433309,-537.89,0.00018318,2]
[368613549,1751237433319,-460.0,0.00018318,2]
[368613550,1751237433328,-460.0,0.00018318,2]
[368613551,1751237433338,-460.0,0.00018318,2]
[368613552,1751237433347,-460.0,0.00018318,2]
[368613553,1751237433356,-460.0,0.00018318,2]
[368613554,1751237433366,-460.0,0.00018318,2]
[368613555,1751237433375,-460.0,0.00018318,2]
[368613556,1751237433385,-460.0,0.00018318,2]
[368613557,1751237433394,-583.72,0.00018318,2]
[368613558,1751237433403,-460.0,0.00018318,2]
[368613559,1751237433413,-460.0,0.00018318,2]
[368613560,1751237433422,-500.0,0.00018318,2]
[368613561,1751237433431,-460.0,0.00018318,2]
[368613562,1751237433441,-460.0,0.00018318,2]
[368613563,1751237433450,-460.0,0.00018318,2]
[368613564,1751237433459,-460.0,0.00018318,2]
[368613565,1751237433469,-512.36,0.00018318,2]
[368613566,1751237433478,-460.0,0.00018318,2]
[368613567,1751237433491,-460.0,0.00018318,2]
[368613568,1751237433501,-769.88,0.00018318,2]
[368613569,1751237433511,-460.0,0.00018319,2]
[368613570,1751237433522,-460.0,0.00018319,2]
[368613571,1751237433533,-460.0,0.00018319,2]
[368613572,1751237433543,-460.0,0.00018319,2]
[368613573,1751237433552,-460.0,0.00018319,2]
[368613574,1751237433563,-460.0,0.00018319,2]
[368613575,1751237433574,-1145.39,0.00018319,2]
[368613576,1751237433584,-2956.89,0.00018319,2]
[368613577,1751237433593,-1059.98,0.00018319,2]
[368613578,1751237433603,-460.0,0.00018319,2]
[368613579,1751237433614,-460.0,0.0001832,2]
[368613580,1751237433624,-460.0,0.0001832,2]
[368613581,1751237433634,-460.0,0.0001832,2]
[368613582,1751237433644,-460.0,0.0001832,2]
[368613583,1751237433654,-460.0,0.0001832,2]
[368613584,1751237433664,-500.0,0.0001832,2]
[368613585,1751237433674,-161.16572637,0.00018321,2]
[368613586,1751237433683,-460.0,0.00018321,2]
[368613587,1751237433693,-460.0,0.00018321,2]
[368613588,1751237433703,-460.0,0.00018321,2]
[368613589,1751237433712,-460.0,0.00018321,2]
[368613590,1751237433721,-460.0,0.00018321,2]
[368613591,1751237433730,-445.24797398,0.00018321,2]
[368613592,1751237433742,-460.0,0.00018321,2]
[368613593,1751237433751,-460.0,0.00018322,2]
[368613594,1751237433761,-163.41295864,0.00018322,2]
[368613595,1751237433771,-460.0,0.00018322,2]
[368613596,1751237433781,-460.0,0.00018322,2]
[368613597,1751237433790,-409.21266774,0.00018322,2]
[368613598,1751237433801,-467.59,0.00018322,2]
[368613599,1751237433810,-460.0,0.00018322,2]
[368613600,1751237433820,-334.52812608,0.00018322,2]
[368613601,1751237433832,-473.87849468,0.00018322,2]
[368613606,1751237438567,-474.55340243,0.00018318,2]
[368613607,1751237438580,-541.5756637,0.00018318,2]
[368613608,1751237438591,-1565.95093387,0.00018318,2]
[368613609,1751237438601,-106.57337924,0.00018322,2]
[368613610,1751237438610,-463.03,0.00018322,2]
[368613611,1751237438620,-460.0,0.00018322,2]
[368613612,1751237438630,-460.0,0.00018322,2]
[368613613,1751237438639,-777.09,0.00018322,2]
[368613614,1751237438648,-460.0,0.00018322,2]
[368613615,1751237438658,-596.82,0.00018322,2]
[368613616,1751237438667,-460.0,0.00018323,2]
[368613617,1751237438676,-540.94907351,0.00018591,2]
[368613618,1751237438685,-1776.59,0.00018591,2]
[368613619,1751237438695,-3330.9,0.00018591,2]
[368613620,1751237438704,-460.0,0.00018591,2]
[368613621,1751237438713,-460.0,0.00018591,2]
[368613622,1751237438723,-1845.69,0.00018591,2]
[368613623,1751237438733,-460.0,0.00018591,2]
[368613624,1751237438744,-1799.5,0.00018591,2]
[368613625,1751237438754,-460.0,0.00018591,2]
[368613626,1751237438763,-460.0,0.00018591,2]
[368613627,1751237438773,-2094.07,0.00018591,2]
[368613628,1751237438782,-460.0,0.00018591,2]
[368613629,1751237438792,-1223.65,0.00018591,2]
[368613630,1751237438801,-1016.52,0.00018591,2]
[368613631,1751237438811,-460.0,0.00018591,2]
[368613632,1751237438820,-460.0,0.00018591,2]
[368613633,1751237438830,-979.17,0.00018591,2]
[368613634,1751237438839,-460.0,0.00018591,2]
[368613635,1751237438848,-1413.48,0.00018591,2]
[368613636,1751237438858,-460.0,0.00018592,2]
[368613637,1751237438867,-460.0,0.00018592,2]
[368613638,1751237438877,-460.0,0.00018592,2]
[368613639,1751237438886,-460.0,0.00018592,2]
[368613640,1751237438895,-460.0,0.00018592,2]
[368613641,1751237438906,-460.0,0.00018592,2]
[368613642,1751237438915,-487.74873008,0.00018592,2]
[368613643,1751237438924,-460.0,0.00018592,2]
[368613644,1751237438934,-460.0,0.00018592,2]
[368613645,1751237438943,-460.0,0.00018592,2]
[368613646,1751237438953,-460.0,0.00018592,2]
[368613647,1751237438962,-460.0,0.00018592,2]
[368613648,1751237438971,-460.0,0.00018592,2]
[368613649,1751237438981,-460.0,0.00018592,2]
[368613650,1751237438991,-460.0,0.00018592,2]
[368613651,1751237439001,-460.0,0.00018592,2]
[368613652,1751237439010,-460.0,0.00018592,2]
[368613653,1751237439019,-609.55669004,0.00018592,2]
[368613654,1751237439028,-460.0,0.00018592,2]
[368613655,1751237439037,-840.1,0.00018592,2]
[368613656,1751237439047,-586.37105927,0.00018592,2]
[368613657,1751237439056,-537.89,0.00018592,2]
[368613658,1751237439065,-460.0,0.00018592,2]
[368613659,1751237439075,-460.0,0.00018592,2]
[368613660,1751237439084,-460.0,0.00018592,2]
[368613661,1751237439094,-460.0,0.00018592,2]
[368613662,1751237439103,-1165.01,0.00018592,2]
[368613663,1751237439112,-460.0,0.00018592,2]
[368613664,1751237439122,-460.0,0.00018592,2]
[368613665,1751237439131,-583.72,0.00018592,2]
[368613666,1751237439141,-460.0,0.00018592,2]
[368613667,1751237439151,-460.0,0.00018592,2]
[368613668,1751237439160,-460.0,0.00018592,2]
[368613669,1751237439169,-460.0,0.00018592,2]
[368613670,1751237439179,-460.0,0.00018592,2]
[368613671,1751237439188,-460.0,0.00018592,2]
[368613672,1751237439197,-512.36,0.00018592,2]
[368613673,1751237439207,-1380.95,0.00018592,2]
[368613674,1751237439216,-460.0,0.00018592,2]
[368613675,1751237439226,-460.0,0.00018592,2]
[368613676,1751237439235,-460.0,0.00018592,2]
[368613677,1751237439246,-769.88,0.00018592,2]
[368613678,1751237439255,-460.0,0.00018592,2]
[368613679,1751237439265,-2582.08,0.00018592,2]
[368613680,1751237439274,-460.0,0.00018593,2]
[368613681,1751237439284,-460.0,0.00018593,2]
[368613682,1751237439293,-460.0,0.00018593,2]
[368613683,1751237439302,-460.0,0.00018593,2]
[368613684,1751237439312,-1145.39,0.00018593,2]
[368613685,1751237439321,-2956.89,0.00018593,2]
[368613686,1751237439339,-1059.98,0.00018593,2]
[368613687,1751237439350,-460.0,0.00018594,2]
[368613688,1751237439360,-190.0,0.00018594,2]
[368613689,1751237439369,-460.0,0.00018594,2]
[368613690,1751237439379,-460.0,0.00018595,2]
[368613691,1751237439388,-460.0,0.00018595,2]
[368613692,1751237439398,-460.0,0.00018596,2]
[368613693,1751237439407,-460.0,0.00018596,2]
[368613694,1751237439417,-467.59,0.00018596,2]
[368613695,1751237439427,-460.0,0.00018596,2]
[368613696,1751237439436,-914.98,0.00018596,2]
[368613697,1751237439446,-463.03,0.00018596,2]
[368613698,1751237439455,-460.0,0.00018596,2]
[368613699,1751237439465,-777.09,0.00018596,2]
[368613700,1751237439475,-460.0,0.00018596,2]
[368613701,1751237439485,-596.82,0.00018596,2]
[368613702,1751237439499,-668.32,0.00018856,3]
[368613703,1751237439509,-1776.59,0.00018865,2]
[368613704,1751237439519,-3330.9,0.00018865,2]
[368613705,1751237439529,-460.0,0.00018865,2]
[368613706,1751237439539,-286.62,0.00018865,2]
[368613707,1751237439549,-1845.69,0.00018865,2]
[368613708,1751237439559,-460.0,0.00018865,2]
[368613709,1751237439569,-1799.5,0.00018865,2]
[368613710,1751237439579,-460.0,0.00018865,2]
[368613711,1751237439588,-460.0,0.00018865,2]
[368613712,1751237439599,-2094.07,0.00018865,2]
[368613713,1751237439608,-460.0,0.00018865,2]
[368613714,1751237439618,-1223.65,0.00018865,2]
[368613715,1751237439628,-1016.52,0.00018865,2]
[368613716,1751237439638,-979.17,0.00018865,2]
[368613717,1751237439648,-460.0,0.00018865,2]
[368613718,1751237439659,-1413.48,0.00018865,2]
[368613719,1751237439669,-460.0,0.00018866,2]
[368613720,1751237439679,-460.0,0.00018866,2]
[368613721,1751237439688,-460.0,0.00018866,2]
[368613722,1751237439698,-460.0,0.00018866,2]
[368613723,1751237439708,-460.0,0.00018866,2]
[368613724,1751237439718,-460.0,0.00018866,2]
[368613725,1751237439727,-460.0,0.00018866,2]
[368613726,1751237439737,-460.0,0.00018866,2]
[368613727,1751237439746,-460.0,0.00018866,2]
[368613728,1751237439756,-368.31,0.00018866,2]
[368613729,1751237439766,-840.1,0.00018866,2]
[368613730,1751237439776,-537.89,0.00018866,2]
[368613731,1751237439786,-242.83434307,0.00018866,2]
[368613732,1751237439795,-460.0,0.00018866,2]
[368613733,1751237439805,-460.0,0.00018866,2]
[368613734,1751237439815,-460.0,0.00018866,2]
[368613735,1751237439824,-1165.01,0.00018866,2]
[368613736,1751237439833,-460.0,0.00018866,2]
[368613737,1751237439842,-460.0,0.00018866,2]
[368613738,1751237439852,-583.72,0.00018866,2]
[368613739,1751237439861,-460.0,0.00018866,2]
[368613740,1751237439871,-460.0,0.00018866,2]
[368613741,1751237439881,-460.0,0.00018866,2]
[368613742,1751237439890,-460.0,0.00018866,2]
[368613743,1751237439900,-460.0,0.00018866,2]
[368613744,1751237439910,-460.0,0.00018866,2]
[368613745,1751237439919,-512.36,0.00018866,2]
[368613746,1751237439929,-1380.95,0.00018866,2]
[368613747,1751237439938,-412.62,0.00018866,2]
[368613748,1751237439948,-460.0,0.00018866,2]
[368613749,1751237439958,-769.88,0.00018866,2]
[368613750,1751237439967,-460.0,0.00018866,2]
[368613751,1751237439977,-2582.08,0.00018866,2]
[368613752,1751237439987,-460.0,0.00018867,2]
[368613753,1751237439997,-460.0,0.00018867,2]
[368613754,1751237440007,-460.0,0.00018867,2]
[368613755,1751237440017,-460.0,0.00018867,2]
[368613756,1751237440027,-1145.39,0.00018867,2]
[368613757,1751237440036,-2956.89,0.00018867,2]
[368613758,1751237440046,-1059.98,0.00018867,2]
[368613759,1751237440056,-460.0,0.00018868,2]
[368613760,1751237440066,-460.0,0.00018869,2]
[368613761,1751237440075,-335.2087509,0.0001887,2]
[368613762,1751237440085,-460.0,0.0001887,2]
[368613763,1751237440095,-467.59,0.0001887,2]
[368613764,1751237440104,-460.0,0.0001887,2]
[368613765,1751237440115,-914.98,0.0001887,2]
[368613766,1751237440124,-463.03,0.0001887,2]
[368613767,1751237440134,-460.0,0.0001887,2]
[368613768,1751237440144,-777.09,0.0001887,2]
[368613769,1751237440153,-460.0,0.0001887,2]
[368613770,1751237440163,-596.82,0.0001887,2]
[368613771,1751237440172,-483.52300158,0.00018873,2]
[368613772,1751237440182,-1323.81078113,0.000189,2]
[368613773,1751237440192,-3438.25001351,0.000189,2]
[368613774,1751237440202,-246.26309525,0.00019039,2]
[368613775,1751237440211,-3438.2500134,0.00019107,2]
[368613776,1751237440221,-1776.59,0.00019139,2]
[368613777,1751237440232,-3330.9,0.00019139,2]
[368613778,1751237440242,-460.0,0.00019139,2]
[368613779,1751237440252,-1845.69,0.00019139,2]
[368613780,1751237440262,-460.0,0.00019139,2]
[368613781,1751237440272,-1799.5,0.00019139,2]
[368613782,1751237440281,-460.0,0.00019139,2]
[368613783,1751237440291,-460.0,0.00019139,2]
[368613784,1751237440301,-2094.07,0.00019139,2]
[368613785,1751237440310,-460.0,0.00019139,2]
[368613786,1751237440321,-1223.65,0.00019139,2]
[368613788,1751237440330,-1016.52,0.00019139,2]
[368613789,1751237440340,-979.17,0.00019139,2]
[368613790,1751237440349,-460.0,0.00019139,2]
[368613792,1751237440358,-1413.48,0.00019139,2]
[368613793,1751237440367,-460.0,0.0001914,2]
[368613794,1751237440377,-460.0,0.0001914,2]
[368613795,1751237440387,-270.02986216,0.0001914,2]
[368613796,1751237440398,-840.1,0.0001914,2]
[368613797,1751237440407,-537.89,0.0001914,2]
[368613798,1751237440416,-460.0,0.0001914,2]
[368613799,1751237440426,-460.0,0.0001914,2]
[368613800,1751237440435,-460.0,0.0001914,2]
[368613802,1751237440444,-1165.01,0.0001914,2]
[368613803,1751237440454,-460.0,0.0001914,2]
[368613804,1751237440464,-460.0,0.0001914,2]
[368613805,1751237440473,-583.72,0.0001914,2]
[368613806,1751237440483,-369.7,0.0001914,2]
[368613807,1751237440496,-460.0,0.0001914,2]
[368613808,1751237440506,-460.0,0.0001914,2]
[368613809,1751237440515,-460.0,0.0001914,2]
[368613810,1751237440525,-460.0,0.0001914,2]
[368613811,1751237440536,-512.36,0.0001914,2]
[368613812,1751237440545,-1380.95,0.0001914,2]
[368613813,1751237440555,-479.28,0.0001914,2]
[368613814,1751237440567,-769.88,0.0001914,2]
[368613815,1751237440577,-460.0,0.0001914,2]
[368613816,1751237440586,-2582.08,0.0001914,2]
[368613817,1751237440595,-460.0,0.00019141,2]
[368613818,1751237440605,-460.0,0.00019141,2]
[368613819,1751237440614,-1145.39,0.00019141,2]
[368613820,1751237440623,-2956.89,0.00019141,2]
[368613821,1751237440633,-1059.98,0.00019141,2]
[368613823,1751237440819,-460.0,0.00019142,2]
[368613824,1751237440829,-460.0,0.00019143,2]
[368613825,1751237440839,-460.0,0.00019144,2]
[368613826,1751237440848,-467.59,0.00019144,2]
[368613827,1751237440857,-460.0,0.00019144,2]
[368613828,1751237440867,-914.98,0.00019144,2]
[368613830,1751237441084,-463.03,0.00019144,2]
[368613831,1751237441094,-460.0,0.00019144,2]
[368613832,1751237441104,-777.09,0.00019144,2]
[368613833,1751237441114,-460.0,0.00019144,2]
[368613834,1751237441123,-596.82,0.00019144,2]
[368613835,1751237441133,-55349.0902884,0.00019178,2]
[368613836,1751237441142,-1916.9676096,0.00019213,2]
[368613837,1751237441151,-13862.2281026,0.00019313,2]
[368613838,1751237441161,-3438.2500134,0.00019314,2]
[368613839,1751237441170,-100000.0,0.00019329,2]
[368613840,1751237441180,-1776.59,0.00019413,2]
[368613841,1751237441190,-3330.9,0.00019413,2]
[368613842,1751237441199,-460.0,0.00019413,2]
[368613843,1751237441209,-1845.69,0.00019413,2]
[368613844,1751237441219,-460.0,0.00019413,2]
[368613846,1751237441228,-1799.5,0.00019413,2]
[368613848,1751237441237,-460.0,0.00019413,2]
[368613850,1751237441248,-460.0,0.00019413,2]
[368613852,1751237441257,-2094.07,0.00019413,2]
[368613854,1751237441266,-460.0,0.00019413,2]
[368613856,1751237441275,-1223.65,0.00019413,2]
[368613858,1751237441284,-1016.52,0.00019413,2]
[368613860,1751237441294,-979.17,0.00019413,2]
[368613861,1751237441303,-460.0,0.00019413,2]
[368613863,1751237441313,-1413.48,0.00019413,2]
[368613865,1751237441322,-840.1,0.00019414,2]
[368613867,1751237441331,-537.89,0.00019414,2]
[368613869,1751237441341,-460.0,0.00019414,2]
[368613871,1751237441350,-460.0,0.00019414,2]
[368613873,1751237441360,-460.0,0.00019414,2]
[368613875,1751237441369,-1165.01,0.00019414,2]
[368613877,1751237441379,-460.0,0.00019414,2]
[368613878,1751237441388,-460.0,0.00019414,2]
[368613879,1751237441397,-583.72,0.00019414,2]
[368613880,1751237441406,-460.0,0.00019414,2]
[368613881,1751237441415,-460.0,0.00019414,2]
[368613882,1751237441425,-460.0,0.00019414,2]
[368613883,1751237441435,-460.0,0.00019414,2]
[368613884,1751237441447,-512.36,0.00019414,2]
[368613885,1751237441457,-1380.95,0.00019414,2]
[368613886,1751237441466,-769.88,0.00019414,2]
[368613887,1751237441476,-460.0,0.00019414,2]
[368613888,1751237441488,-2582.08,0.00019414,2]
[368613889,1751237441499,-460.0,0.00019415,2]
[368613890,1751237441508,-460.0,0.00019415,2]
[368613891,1751237441518,-1145.39,0.00019415,2]
[368613892,1751237441527,-2956.89,0.00019415,2]
[368613893,1751237441537,-1059.98,0.00019415,2]
[368613894,1751237441547,-460.0,0.00019416,2]
[368613895,1751237441557,-460.0,0.00019417,2]
[368613896,1751237441568,-151.0,0.00019418,2]
[368613897,1751237441578,-151.0,0.00019418,2]
[368613898,1751237441588,-151.0,0.00019418,2]
[368613899,1751237441598,-151.0,0.00019418,2]
[368613900,1751237441608,-228.475322,0.00019418,2]
[368613901,1751237441617,-151.0,0.00019418,2]
[368613902,1751237441627,-151.0,0.00019418,2]
[368613903,1751237441636,-151.0,0.00019418,2]
[368613904,1751237441646,-460.0,0.00019418,2]
[368613905,1751237441657,-467.59,0.00019418,2]
[368613906,1751237441667,-460.0,0.00019418,2]
[368613907,1751237441676,-914.98,0.00019418,2]
[368613908,1751237441686,-463.03,0.00019418,2]
[368613909,1751237441696,-460.0,0.00019418,2]
[368613910,1751237441706,-777.09,0.00019418,2]
[368613911,1751237441715,-460.0,0.00019418,2]
[368613912,1751237441725,-596.82,0.00019418,2]
[368613913,1751237441735,-500.0,0.00019513,2]
[368613914,1751237441746,-500.0,0.00019513,2]
[368613915,1751237441756,-500.0,0.00019513,2]
[368613916,1751237441766,-500.0,0.00019513,2]
[368613917,1751237441776,-500.0,0.00019513,2]
[368613918,1751237441785,-500.0,0.00019513,2]
[368613919,1751237441795,-1916.96760959,0.00019515,2]
[368613920,1751237441804,-160.0,0.00019525,2]
[368613921,1751237441813,-12567.05932091,0.00019525,2]
[368613922,1751237441823,-213.82031328,0.00019525,2]
[368613923,1751237441832,-214.97967293,0.00019525,2]
[368613924,1751237441841,-160.0,0.00019525,2]
[368613925,1751237441850,-230.30207649,0.00019525,2]
[368613926,1751237441859,-160.0,0.00019525,2]
[368613927,1751237441868,-160.0,0.00019525,2]
[368613928,1751237441877,-160.0,0.00019525,2]
[368613929,1751237441886,-847.31290578,0.00019525,2]
[368613930,1751237441895,-160.0,0.00019525,2]
[368613931,1751237441904,-837.1293463,0.00019526,2]
[368613932,1751237441913,-160.0,0.00019526,2]
[368613933,1751237441922,-160.0,0.00019526,2]
[368613934,1751237441931,-483.52300158,0.00019527,2]
[368613935,1751237441941,-500.0,0.00019539,2]
[368613936,1751237441950,-775.0,0.00019576,2]
[368613937,1751237441959,-775.0,0.00019586,2]
[368613938,1751237441968,-1000.0,0.000196,2]
[368613939,1751237441978,-775.0,0.00019611,2]
[368613940,1751237441987,-300.0,0.00019664,2]
[368613941,1751237441998,-775.0,0.00019678,2]
[368613942,1751237442007,-500.0,0.0001968,2]
[368613943,1751237442017,-500.0,0.0001968,2]
[368613944,1751237442027,-1776.59,0.00019687,2]
[368613945,1751237442036,-3330.9,0.00019687,2]
[368613946,1751237442046,-460.0,0.00019687,2]
[368613947,1751237442056,-1845.69,0.00019687,2]